bitfinex/quotes_SOLUSD_20260224
["timestamp","ask_amount","ask_price","bid_price","bid_amount"]
[1771913703191,13.03288196,76.729,76.691,0.45016162]
[1771913703574,0.43067905,76.728,76.691,0.45016162]
[1771913704593,5.33983964,76.73,76.711,0.45016162]
[1771913704594,0.1,76.73,76.711,0.45016162]
[1771913705492,0.43067905,76.759,76.721,0.45016162]
[1771913705791,13.02795799,76.758,76.731,0.45016162]
[1771913705995,0.43067905,76.757,76.72,5.23983964]
[1771913706192,0.4560749,76.749,76.72,5.23983964]
[1771913707082,0.4560749,76.747,76.721,13.03424095]
[1771913708175,0.4560749,76.747,76.722,0.45016162]
[1771913708383,13.02905108,76.752,76.731,0.45016162]
[1771913709883,0.4560749,76.749,76.722,0.45016162]
[1771913711997,0.4560749,76.747,76.722,0.45016162]
[1771913712599,0.4560749,76.747,76.724,0.45016162]
[1771913714888,13.02999504,76.746,76.724,0.45016162]
[1771913715183,0.4560749,76.739,76.718,0.45016162]
[1771913716582,13.48737827,76.739,76.718,0.45016162]
[1771913717105,0.4560749,76.739,76.718,0.45016162]
[1771913717602,13.03105933,76.74,76.718,0.45016162]
[1771913717798,0.4560749,76.749,76.721,0.45016162]
[1771913718303,13.02938849,76.75,76.721,0.45016162]
[1771913719194,0.45524886,76.75,76.723,0.4662994]
[1771913720724,0.45524886,76.739,76.711,0.4662994]
[1771913721310,13.02948572,76.749,76.721,0.4662994]
[1771913721608,0.45524886,76.752,76.731,0.4662994]
[1771913722109,13.02882821,76.753,76.731,0.4662994]
[1771913723896,13.02812772,76.757,76.731,0.4662994]
[1771913724392,13.52630116,76.757,76.731,0.4662994]
[1771913724807,5.22641793,76.74,76.698,0.4790714]
[1771913724991,5.22641793,76.71,76.652,32.61456981]
[1771913725193,0.49817344,76.701,76.665,13.04376182]
[1771913725390,0.49817344,76.709,76.68,5.22641793]
[1771913726104,5.22641793,76.7,76.66,5.22641793]
[1771913726304,0.49817344,76.689,76.65,5.22641793]
[1771913726504,0.49817344,76.689,76.658,13.0448494]
[1771913726693,0.49817344,76.689,76.66,5.22641793]
[1771913726894,0.49817344,76.689,76.661,0.4790714]
[1771913728202,0.49817344,76.687,76.661,0.4790714]
[1771913728823,0.49817344,76.687,76.654,0.4790714]
[1771913729013,0.49817344,76.679,76.651,13.04614421]
[1771913731018,0.49817344,76.677,76.648,0.4790714]
[1771913734821,13.03992954,76.688,76.661,0.4790714]
[1771913735131,5.22641793,76.69,76.661,0.4790714]
[1771913735132,0.49817344,76.69,76.661,0.4790714]
[1771913735423,0.49817344,76.699,76.671,0.4790714]
[1771913735603,0.49817344,76.706,76.671,0.4790714]
[1771913736126,0.49817344,76.706,76.681,0.4790714]
[1771913736605,0.49817344,76.719,76.681,0.4790714]
[1771913736803,0.49817344,76.719,76.691,0.4790714]
[1771913737022,0.49817344,76.717,76.693,0.4790714]
[1771913737238,0.49817344,76.72,76.693,0.4790714]
[1771913737806,13.53275418,76.719,76.693,0.4790714]
[1771913739525,0.49817344,76.718,76.693,0.4790714]
[1771913739926,0.49817344,76.718,76.688,13.03982045]
[1771913740224,0.49817344,76.718,76.688,13.51889185]
[1771913740416,0.49817344,76.718,76.689,0.4790714]
[1771913741824,0.49817344,76.709,76.678,0.4790714]
[1771913742707,0.49817344,76.709,76.67,5.22641793]
[1771913742708,0.49817344,76.699,76.672,0.4790714]
[1771913744323,0.49817344,76.707,76.674,0.4790714]
[1771913744530,0.49817344,76.716,76.681,0.4790714]
[1771913744725,0.49817344,76.722,76.691,0.4790714]
[1771913745023,0.49817344,76.736,76.711,0.4790714]
[1771913745718,0.49817344,76.729,76.69,5.22641793]
[1771913746022,13.03084316,76.742,76.72,5.22641793]
[1771913746226,0.49817344,76.744,76.72,5.22641793]
[1771913747018,0.49817344,76.744,76.721,13.03424095]
[1771913747609,0.49817344,76.75,76.73,5.22641793]
[1771913747924,0.49817344,76.75,76.726,0.16101653]
[1771913749110,0.4981606,76.757,76.731,0.16101653]
[1771913750430,13.52628832,76.757,76.731,0.16101653]
[1771913750822,0.4981606,76.749,76.72,5.22641793]
[1771913751026,0.4981606,76.747,76.714,0.16101653]
[1771913751221,0.4981606,76.747,76.72,5.22641793]
[1771913751419,0.4981606,76.747,76.721,0.16101653]
[1771913753034,0.4981606,76.747,76.73,5.22641793]
[1771913753252,13.02900632,76.752,76.73,5.22641793]
[1771913753424,0.4981606,76.754,76.73,5.22641793]
[1771913754337,13.02880669,76.753,76.73,5.22641793]
[1771913754537,0.4981606,76.754,76.731,13.03254225]
[1771913755120,0.4981606,76.754,76.732,0.16101653]
[1771913755321,0.1,76.76,76.741,0.16101653]
[1771913755528,0.4981606,76.759,76.74,5.22641793]
[1771913755727,0.4981606,76.759,76.734,0.16101653]
[1771913755929,0.4981606,76.759,76.74,5.22641793]
[1771913756433,0.5981606,76.77,76.75,5.22641793]
[1771913756940,0.5981606,76.77,76.747,0.16101653]
[1771913757238,0.5981606,76.77,76.75,11.65697512]
[1771913757739,0.1,76.77,76.751,0.16101653]
[1771913759639,0.4981606,76.769,76.74,13.03096339]
[1771913760835,0.4981606,76.757,76.727,13.03307354]
[1771913761218,0.4981606,76.757,76.72,11.65697512]
[1771913761420,0.4981606,76.757,76.721,0.16101653]
[1771913763036,0.4981606,76.755,76.731,13.19355878]
[1771913763630,11.75697512,76.77,76.741,0.16101653]
[1771913763631,0.4981606,76.761,76.741,0.16101653]
[1771913763947,0.5981606,76.77,76.741,0.16101653]
[1771913764243,0.4981606,76.769,76.74,11.65697512]
[1771913765543,0.4981606,76.767,76.741,13.030844]
[1771913766148,0.4981606,76.767,76.74,11.65697512]
[1771913766333,0.4981606,76.767,76.735,0.16101653]
[1771913766642,0.4981606,76.759,76.72,11.65697512]
[1771913767646,0.4981606,76.757,76.721,0.16101653]
[1771913767846,0.4981606,76.757,76.73,11.65697512]
[1771913769239,0.4981606,76.764,76.74,11.65697512]
[1771913770251,0.4981606,76.764,76.741,13.030844]
[1771913771252,0.4981606,76.764,76.74,11.65996504]
[1771913771444,13.02609126,76.769,76.75,11.65996504]
[1771913771747,13.02609126,76.769,76.741,0.16101653]
[1771913771928,13.52425186,76.769,76.741,0.16101653]
[1771913772440,0.4981606,76.768,76.741,0.16101653]
[1771913773628,0.4981606,76.768,76.75,11.65996504]
[1771913773947,13.02643062,76.767,76.75,11.65996504]
[1771913774249,0.4981606,76.766,76.74,11.65996504]
[1771913776553,0.4981606,76.766,76.736,0.16101653]
[1771913776728,0.4981606,76.764,76.74,11.65996504]
[1771913777346,0.4981606,76.764,76.74,5.22329714]
[1771913778038,0.57217467,76.77,76.75,5.38431367]
[1771913778343,0.1,76.77,76.751,0.16101653]
[1771913778546,0.1,76.78,76.761,0.16101653]
[1771913778735,0.1,76.78,76.762,0.16101653]
[1771913779251,0.57217467,76.78,76.75,5.22329714]
[1771913779553,0.47217467,76.779,76.75,5.22329714]
[1771913779754,0.47217467,76.779,76.743,32.57589778]
[1771913780052,0.47217467,76.779,76.75,5.22329714]
[1771913780644,0.47217467,76.777,76.751,13.0291462]
[1771913782036,0.47217467,76.775,76.743,0.16101653]
[1771913789258,0.47275186,76.774,76.743,0.16101653]
[1771913789766,0.47275186,76.773,76.743,0.16101653]
[1771913789971,0.2,76.775,76.751,0.16101653]
[1771913790156,0.2,76.775,76.761,0.16101653]
[1771913791266,0.2,76.775,76.728,103.5]
[1771913791267,0.2,76.775,76.751,13.0291462]
[1771913791456,0.67275186,76.775,76.752,0.16101653]
[1771913791768,0.47275186,76.773,76.751,13.0291462]
[1771913794466,0.47275186,76.773,76.746,0.16101653]
[1771913798376,5.22329714,76.77,76.737,13.03138857]
[1771913798575,0.47275186,76.769,76.737,13.03138857]
[1771913799160,0.47275186,76.769,76.737,13.1924051]
[1771913801583,0.47275186,76.767,76.74,5.22329714]
[1771913802567,0.47275186,76.767,76.741,0.16101653]
[1771913804182,0.47275186,76.767,76.72,5.22329714]
[1771913804183,0.47275186,76.759,76.73,5.22329714]
[1771913804385,0.47275186,76.759,76.73,18.25595299]
[1771913804584,0.47275186,76.759,76.74,5.22329714]
[1771913806884,0.57275186,76.78,76.75,5.22329714]
[1771913807086,0.47275186,76.779,76.75,5.22329714]
[1771913807786,0.47275186,76.778,76.75,5.22329714]
[1771913809468,0.47275186,76.778,76.751,13.0291462]
[1771913809795,0.49806155,76.776,76.751,13.0291462]
[1771913811082,0.49806155,76.769,76.74,5.22329714]
[1771913812374,0.49806155,76.768,76.743,13.03042079]
[1771913813001,0.49806155,76.768,76.74,5.22329714]
[1771913813686,0.49806155,76.768,76.741,13.030844]
[1771913814395,0.49806155,76.768,76.75,5.22329714]
[1771913814900,0.49806155,76.768,76.749,0.16101653]
[1771913815277,0.49806155,76.768,76.741,0.16101653]
[1771913815593,0.49806155,76.766,76.74,5.22329714]
[1771913817398,0.49806155,76.766,76.741,13.030844]
[1771913818487,0.49806155,76.766,76.742,0.16101653]
[1771913820084,0.49806155,76.772,76.751,0.16101653]
[1771913820286,0.49806155,76.778,76.751,0.16101653]
[1771913821282,0.1,76.78,76.761,0.16101653]
[1771913821489,0.1,76.78,76.77,5.22329714]
[1771913821877,0.1,76.78,76.767,0.16101653]
[1771913826399,0.1,76.78,76.762,0.16101653]
[1771913830401,0.49806155,76.792,76.771,0.06101653]
[1771913831695,0.49806155,76.792,76.78,5.21856649]
[1771913831893,37.86653553,76.81,76.781,0.06101653]
[1771913831894,0.49806155,76.809,76.781,0.06101653]
[1771913832202,0.49806155,76.809,76.791,0.06101653]
[1771913832702,13.01600942,76.829,76.801,0.45718261]
[1771913832905,13.01600942,76.829,76.81,5.21856649]
[1771913833598,0.1,76.83,76.81,5.21856649]
[1771913834207,13.11587278,76.83,76.81,5.21856649]
[1771913834503,18.33443927,76.83,76.8,5.21856649]
[1771913834804,0.49806155,76.829,76.8,5.21856649]
[1771913834990,0.49806155,76.829,76.801,13.02066379]
[1771913835903,0.49806155,76.829,76.801,13.4778464]
[1771913836094,0.49806155,76.829,76.802,0.45718261]
[1771913837304,0.49806155,76.827,76.8,5.21856649]
[1771913837517,0.49806155,76.819,76.791,0.45718261]
[1771913839391,0.4810731,76.817,76.785,0.47105042]
[1771913839593,0.4810731,76.809,76.78,5.68961691]
[1771913839798,0.4810731,76.809,76.781,0.47105042]
[1771913848209,0.1,76.83,76.757,3.69383402]
[1771913848210,0.4573775,76.825,76.791,0.46725282]
[1771913848517,0.4573775,76.819,76.791,0.46725282]
[1771913850518,0.4573775,76.817,76.793,0.46725282]
[1771913852612,45.55571463,76.829,76.793,0.46725282]
[1771913854619,0.4573775,76.826,76.793,0.46725282]
[1771913856020,0.4573775,76.824,76.793,0.46725282]
[1771913857020,0.4573775,76.824,76.795,0.46725282]
[1771913858902,0.4573775,76.819,76.791,0.46725282]
[1771913859105,0.4573775,76.819,76.792,0.46725282]
[1771913861818,13.01778229,76.818,76.792,0.46725282]
[1771913862027,0.4573775,76.817,76.792,0.46725282]
[1771913862809,0.4573775,76.815,76.792,0.46725282]
[1771913863024,5.31856649,76.83,76.801,0.46725282]
[1771913863217,5.31856649,76.83,76.768,3.69383402]
[1771913863218,0.4573775,76.819,76.791,0.46725282]
[1771913864506,13.01778229,76.818,76.792,13.02215905]
[1771913864712,0.4573775,76.817,76.793,0.46725282]
[1771913866127,0.4573775,76.815,76.793,0.46725282]
[1771913866429,0.4573775,76.827,76.795,0.46725282]
[1771913867223,0.4573775,76.827,76.8,5.21856649]
[1771913867431,0.4573775,76.827,76.801,0.46725282]
[1771913868225,13.01642673,76.826,76.801,0.46725282]
[1771913868432,0.46165211,76.825,76.801,0.46725282]
[1771913868629,0.46165211,76.825,76.803,0.48964067]
[1771913869606,0.46165211,76.823,76.788,0.48964067]
[1771913869812,0.46165211,76.819,76.788,0.48964067]
[1771913870124,0.46165211,76.819,76.79,0.48964067]
[1771913870830,0.46165211,76.819,76.791,0.48964067]
[1771913873123,0.46165211,76.817,76.781,0.48964067]
[1771913875817,0.46165211,76.815,76.783,0.48964067]
[1771913876222,0.46165211,76.809,76.783,0.48964067]
[1771913876424,0.46165211,76.809,76.761,103.5]
[1771913876425,0.46165211,76.799,76.771,0.48964067]
[1771913876623,0.46165211,76.799,76.773,0.48964067]
[1771913880814,0.46165211,76.789,76.761,0.48964067]
[1771913881813,0.46165211,76.779,76.752,0.48964067]
[1771913882018,0.46165211,76.809,76.771,0.48964067]
[1771913882246,0.46165211,76.789,76.766,0.48964067]
[1771913883636,0.46165211,76.788,76.766,0.48964067]
[1771913885820,0.46165211,76.788,76.767,13.02643062]
[1771913886239,0.46165211,76.788,76.767,13.51607129]
[1771913887338,0.46165211,76.788,76.768,0.48964067]
[1771913891726,0.46165211,76.788,76.764,13.02679272]
[1771913892134,0.46165211,76.788,76.765,0.48964067]
[1771913893347,0.46165211,76.788,76.766,13.02660031]
[1771913893638,0.46165211,76.788,76.767,0.48964067]
[1771913899545,13.51942601,76.799,76.771,0.45853477]
[1771913899933,0.49842314,76.798,76.771,0.45853477]
[1771913900346,0.49842314,76.817,76.781,0.45853477]
[1771913901029,0.49842314,76.816,76.791,0.45853477]
[1771913902951,0.4804865,76.809,76.786,0.47363379]
[1771913906753,0.4804865,76.809,76.787,13.02303775]
[1771913906949,0.4804865,76.809,76.787,13.49667154]
[1771913907138,0.4804865,76.809,76.788,0.47363379]
[1771913909038,0.4804865,76.823,76.801,0.47363379]
[1771913909233,13.01697281,76.823,76.791,0.47363379]
[1771913909467,0.1,76.83,76.811,0.47363379]
[1771913911256,0.1,76.84,76.776,5.36086188]
[1771913911257,0.1,76.84,76.821,0.47363379]
[1771913911463,0.1,76.85,76.831,0.47363379]
[1771913911949,0.1,76.85,76.812,45.565797]
[1771913911950,0.4804865,76.848,76.823,0.47363379]
[1771913912342,0.4804865,76.848,76.818,0.47363379]
[1771913913054,0.4804865,76.848,76.821,0.47363379]
[1771913913256,0.1,76.85,76.823,0.47363379]
[1771913913455,0.5804865,76.85,76.823,0.47363379]
[1771913915650,0.4804865,76.848,76.825,0.47363379]
[1771913915846,0.1,76.85,76.825,0.47363379]
[1771913916164,0.1,76.85,76.831,0.47363379]
[1771913916459,0.4804865,76.881,76.841,0.47363379]
[1771913916779,0.4804865,76.879,76.85,0.47363379]
[1771913917468,0.4804865,76.879,76.851,0.47363379]
[1771913917644,0.4804865,76.879,76.85,5.22091035]
[1771913917645,0.4804865,76.879,76.853,0.47363379]
[1771913919051,0.4804865,76.877,76.853,0.47363379]
[1771913920551,0.1,76.89,76.871,0.47363379]
[1771913920751,0.4804865,76.902,76.88,5.69454414]
[1771913920951,13.48414679,76.902,76.881,0.47363379]
[1771913921157,0.1,76.91,76.891,0.47363379]
[1771913921351,0.1,76.91,76.891,0.37363379]
[1771913922248,0.4804865,76.928,76.9,5.22091035]
[1771913922445,0.4804865,76.927,76.89,5.22091035]
[1771913922659,0.4804865,76.925,76.891,13.00542326]
[1771913923365,0.4804865,76.925,76.901,0.47363379]
[1771913924769,0.4804865,76.919,76.891,0.47363379]
[1771913925159,0.4804865,76.919,76.891,13.47905705]
[1771913925460,0.4804865,76.919,76.892,0.47363379]
[1771913927974,0.4804865,76.919,76.89,5.22091035]
[1771913927975,0.4804865,76.919,76.894,0.47363379]
[1771913928351,13.00052718,76.92,76.894,0.47363379]
[1771913929569,15.59109282,76.929,76.901,0.47939389]
[1771913929770,15.59109282,76.929,76.911,0.47939389]
[1771913929989,0.46375035,76.927,76.895,13.00474673]
[1771913930465,15.59109282,76.929,76.91,5.22091035]
[1771913930850,15.59109282,76.929,76.9,5.22091035]
[1771913931276,15.59109282,76.929,76.91,5.22091035]
[1771913931857,15.59109282,76.929,76.91,5.70030424]
[1771913932370,15.59109282,76.929,76.911,0.47939389]
[1771913932761,0.46375035,76.928,76.9,5.22091035]
[1771913932969,0.46375035,76.928,76.894,0.47939389]
[1771913933279,0.46375035,76.919,76.89,5.22091035]
[1771913933652,0.46375035,76.909,76.87,5.22091035]
[1771913933959,0.46375035,76.909,76.871,0.47939389]
[1771913934174,0.46375035,76.909,76.881,0.47939389]
[1771913936452,0.46375035,76.907,76.875,0.47939389]
[1771913936963,0.46375035,76.907,76.87,5.22091035]
[1771913937253,0.46375035,76.907,76.871,0.47939389]
[1771913937454,0.46375035,76.907,76.874,0.47939389]
[1771913937758,0.46375035,76.915,76.881,0.47939389]
[1771913938673,0.46375035,76.913,76.883,0.47939389]
[1771913939992,0.46375035,76.913,76.891,0.47939389]
[1771913940276,13.46460509,76.919,76.891,0.47939389]
[1771913940849,0.46375035,76.918,76.891,0.47939389]
[1771913941876,5.22091035,76.9,76.87,0.47939389]
[1771913942174,0.46375035,76.899,76.871,0.47939389]
[1771913942974,0.46375035,76.897,76.871,0.47939389]
[1771913943960,0.46375035,76.897,76.575,116.41260363]
[1771913943961,0.46375035,76.897,76.865,0.47939389]
[1771913944155,45.51483783,76.898,76.865,0.47939389]
[1771913944156,0.46375035,76.889,76.865,0.47939389]
[1771913945978,13.0059307,76.888,76.865,0.47939389]
[1771913946660,13.46968105,76.888,76.865,0.47939389]
[1771913948072,0.46375035,76.885,76.865,0.47939389]
[1771913948274,13.00626902,76.886,76.83,5.22091035]
[1771913948275,0.46375035,76.869,76.83,5.22091035]
[1771913948468,0.46375035,76.859,76.822,32.54267228]
[1771913948667,0.46375035,76.859,76.83,5.22091035]
[1771913949376,0.46375035,76.859,76.822,32.54267228]
[1771913950377,0.46375035,76.859,76.825,0.4175482]
[1771913950768,13.01100731,76.858,76.825,0.4175482]
[1771913950970,0.46375035,76.849,76.825,0.4175482]
[1771913952271,0.46375035,76.849,76.812,0.4175482]
[1771913952674,0.46375035,76.849,76.821,0.4175482]
[1771913953065,5.22091035,76.85,76.821,0.4175482]
[1771913953268,5.21247831,76.85,76.821,0.4175482]
[1771913954188,0.46375035,76.849,76.823,0.4175482]
[1771913954487,5.21247831,76.85,76.823,0.4175482]
[1771913954685,0.46375035,76.867,76.823,0.4175482]
[1771913954979,0.46375035,76.861,76.831,0.4175482]
[1771913955181,5.21247831,76.86,76.831,0.4175482]
[1771913955385,0.46375035,76.859,76.831,0.4175482]
[1771913956494,0.46375035,76.859,76.832,13.01541024]
[1771913956793,0.46375035,76.859,76.833,0.4175482]
[1771913961217,0.46375035,76.859,76.835,0.4175482]
[1771913963097,13.00914542,76.869,76.836,13.01473267]
[1771913963299,4.38395025,97.2,76.836,13.01473267]
[1771913963300,0.48730044,76.868,76.841,0.4175482]
[1771913963678,0.48730044,76.879,76.851,0.4175482]
[1771913964480,0.48730044,76.889,76.861,0.4175482]
[1771913965276,0.48730044,76.889,76.862,13.0103302]
[1771913966880,0.48730044,76.879,76.851,13.01219242]
[1771913967299,0.48730044,76.879,76.848,0.4175482]
[1771913969403,0.48730044,76.869,76.841,13.01388581]
[1771913971586,0.48730044,76.869,76.842,0.4175482]
[1771913971894,0.48730044,76.869,76.85,5.63002651]
[1771913972201,0.48730044,76.869,76.85,0.4175482]
[1771913972404,0.48730044,76.888,76.851,0.4175482]
[1771913973094,0.48730044,76.888,76.861,0.4175482]
[1771913973893,0.48730044,76.888,76.862,13.0103302]
[1771913974090,0.48730044,76.888,76.862,13.4278784]
[1771913976391,0.48730044,76.888,76.862,13.0103302]
[1771913977196,13.00609986,76.887,76.862,13.0103302]
[1771913977507,0.48730044,76.886,76.862,13.0103302]
[1771913979295,0.48730044,76.884,76.85,5.21247831]
[1771913979494,0.48730044,76.884,76.851,0.4175482]
[1771913981110,0.48730044,76.884,76.841,0.4175482]
[1771913981495,0.48730044,76.879,76.843,0.4175482]
[1771913983401,0.48730044,76.879,76.851,0.4175482]
[1771913984712,0.48730044,76.869,76.821,0.4175482]
[1771913985601,0.48730044,76.867,76.825,0.4175482]
[1771913985800,5.21247831,76.86,76.825,0.4175482]
[1771913986001,0.48730044,76.859,76.825,0.4175482]
[1771913986596,0.48730044,76.857,76.826,13.01642673]
[1771913986913,0.48730044,76.857,76.827,0.4175482]
[1771913987917,0.48730044,76.857,76.831,0.4175482]
[1771913989922,0.48730044,76.857,76.833,0.4175482]
[1771913993020,0.46724461,76.856,76.832,13.01541024]
[1771913993434,5.21247831,76.88,76.808,3.69383402]
[1771913993435,0.46724461,76.863,76.831,0.4175482]
[1771913995721,0.46724461,76.861,76.833,0.4175482]
[1771913998715,0.46724461,76.859,76.835,0.4175482]
[1771914000624,0.46724461,76.859,76.841,0.4175482]
[1771914001016,0.46724461,76.876,76.843,0.4175482]
[1771914001326,0.46724461,76.891,76.861,0.4175482]
[1771914001630,0.46724461,76.898,76.871,0.4175482]
[1771914002103,0.46724461,76.898,76.86,5.21247831]
[1771914002311,0.46724461,76.898,76.86,5.63002651]
[1771914002625,0.46724461,76.898,76.88,5.21247831]
[1771914002811,0.46724461,76.898,76.852,0.4175482]
[1771914003010,0.46724461,76.896,76.86,5.63002651]
[1771914003209,0.46724461,76.896,76.861,0.4175482]
[1771914006028,65.00469009,76.918,76.842,32.5338939]
[1771914006029,0.46724461,76.879,76.842,32.5338939]
[1771914006931,0.46724461,76.879,76.843,0.4175482]
[1771914007107,0.46724461,76.878,76.844,0.4175482]
[1771914007308,0.46724461,76.878,76.843,13.0135471]
[1771914008110,0.46724461,76.869,76.843,13.0135471]
[1771914008527,0.46724461,76.867,76.838,13.01439391]
[1771914010625,0.46724461,76.867,76.818,3.69383402]
[1771914010626,0.46724461,76.865,76.827,13.01609643]
[1771914010832,0.46724461,76.865,76.78,52.09642718]
[1771914010833,0.46724461,76.859,76.821,0.4175482]
[1771914011213,0.46724461,76.849,76.818,13.01778229]
[1771914011607,0.46724461,76.849,76.819,0.4175482]
[1771914013530,0.46724461,76.849,76.821,0.4175482]
[1771914017031,0.46724461,76.849,76.822,13.01710447]
[1771914017357,0.46724461,76.849,76.8,5.21237002]
[1771914017358,0.46724461,76.847,76.811,0.4175482]
[1771914018517,52.03486114,76.872,76.793,13.02202023]
[1771914018518,0.4952361,76.829,76.793,13.02202023]
[1771914018727,0.4952361,76.829,76.801,0.4175482]
[1771914020541,0.4952361,76.829,76.803,0.4175482]
[1771914021537,0.4952361,76.828,76.803,0.4175482]
[1771914022443,0.4952361,76.828,76.802,13.02049425]
[1771914022444,0.49568761,76.826,76.798,13.02102414]
[1771914024061,0.49568761,76.826,76.798,0.4175482]
[1771914028148,0.49568761,76.826,76.8,0.4175482]
[1771914028745,0.49568761,76.826,76.8,5.62991822]
[1771914028942,0.49568761,76.826,76.801,0.4175482]
[1771914030451,0.49568761,76.831,76.802,13.02049425]
[1771914030764,0.49568761,76.831,76.803,0.4175482]
[1771914033476,0.49568761,76.837,76.804,13.0201552]
[1771914033676,103.9,76.862,76.804,13.0201552]
[1771914033677,0.49568761,76.856,76.821,0.4175482]
[1771914034266,0.49568761,76.871,76.841,0.4175482]
[1771914034478,0.49568761,76.882,76.851,0.4175482]
[1771914035373,0.49568761,76.882,76.852,13.0120231]
[1771914035574,0.49568761,76.882,76.853,0.4175482]
[1771914035978,0.49568761,76.89,76.861,0.4175482]
[1771914037682,0.49568761,76.89,76.863,0.4175482]
[1771914038581,0.49568761,76.888,76.863,0.4175482]
[1771914039084,0.49568761,76.888,76.842,32.53426238]
[1771914039466,0.49568761,76.879,76.843,13.0135471]
[1771914040374,0.49568761,76.877,76.841,0.4175482]
[1771914042198,0.49568761,76.877,76.836,0.4175482]
[1771914043065,0.49568761,76.875,76.85,5.21237002]
[1771914043268,0.49568761,76.875,76.842,0.4175482]
[1771914044085,0.49568761,76.875,76.837,13.01456329]
[1771914044593,0.49568761,76.875,76.838,0.4175482]
[1771914045285,0.49568761,76.873,76.839,13.01422454]
[1771914045489,0.49568761,76.873,76.839,13.43177274]
[1771914045670,0.49568761,76.873,76.84,0.4175482]
[1771914047391,13.00863773,76.872,76.841,13.01388581]
[1771914047577,0.49568761,76.871,76.841,13.01388581]
[1771914047891,0.49568761,76.871,76.841,13.43143401]
[1771914048194,0.49568761,76.871,76.842,0.4175482]
[1771914050279,0.48471943,76.869,76.841,13.01388581]
[1771914051088,0.48471943,76.869,76.842,0.4175482]
[1771914054201,0.48471943,76.875,76.851,0.4175482]
[1771914055492,0.48471943,76.875,76.852,13.0120231]
[1771914055705,0.48471943,76.875,76.853,0.4175482]
[1771914056196,32.51238633,76.894,76.853,0.4175482]
[1771914056403,0.48471943,76.884,76.861,0.4175482]
[1771914056807,0.48471943,76.884,76.854,0.4175482]
[1771914057784,0.48471943,76.883,76.856,0.4175482]
[1771914059612,0.48471943,76.881,76.856,0.4175482]
[1771914060688,0.48471943,76.881,76.851,13.01214564]
[1771914060884,0.48471943,76.879,76.842,13.01371645]
[1771914061211,0.48471943,76.879,76.843,0.4175482]
[1771914061810,0.48471943,76.879,76.851,0.4175482]
[1771914062109,0.48471943,76.878,76.851,0.4175482]
[1771914064111,0.48471943,76.876,76.846,0.4175482]
[1771914066697,0.48471943,76.876,76.847,45.54504404]
[1771914066897,0.48471943,76.876,76.851,0.4175482]
[1771914067992,0.48471943,76.876,76.847,45.54504404]
[1771914068194,0.48471943,76.876,76.848,0.4175482]
[1771914069008,0.48471943,76.876,76.85,5.21237002]
[1771914069217,0.48471943,76.876,76.851,0.4175482]
[1771914071609,0.48471943,76.876,76.852,13.0120231]
[1771914071816,0.48471943,76.876,76.852,13.4295713]
[1771914072013,0.48471943,76.876,76.852,0.4175482]
[1771914072227,0.48471943,76.874,76.841,0.4175482]
[1771914074316,0.48471943,76.874,76.843,0.4175482]
[1771914075220,0.48471943,76.88,76.861,0.4175482]
[1771914076110,13.00745327,76.879,76.861,0.4175482]
[1771914076617,13.4921727,76.879,76.861,0.4175482]
[1771914077112,0.48471943,76.879,76.863,0.4175482]
[1771914077423,0.48471943,76.889,76.863,0.4175482]
[1771914078213,0.45123862,76.887,76.86,5.20658981]
[1771914078418,0.45123862,76.887,76.861,13.01049947]
[1771914079315,0.45123862,76.887,76.85,5.20658981]
[1771914079506,0.45123862,76.887,76.851,13.01219242]
[1771914080704,45.52075746,76.888,76.851,13.01219242]
[1771914080705,0.45123862,76.885,76.851,13.01219242]
[1771914082823,0.45488172,76.879,76.84,5.20658981]
[1771914083004,0.45488172,76.879,76.841,13.01388581]
[1771914083324,0.45488172,76.879,76.842,0.4175482]
[1771914085027,0.45488172,76.877,76.843,13.0135471]
[1771914085215,0.45488172,76.877,76.844,0.4175482]
[1771914087318,0.45488172,76.875,76.85,5.20658981]
[1771914087529,13.46223479,76.88,76.86,5.20658981]
[1771914087709,13.46223479,76.88,76.861,0.4175482]
[1771914087904,0.14216157,76.908,76.871,0.4175482]
[1771914088123,45.5077363,76.91,76.871,0.4175482]
[1771914088124,0.45488172,76.905,76.871,0.4175482]
[1771914088427,0.45488172,76.899,76.861,0.4175482]
[1771914088730,0.45488172,76.899,76.86,5.20658981]
[1771914089024,0.45488172,76.889,76.856,0.4175482]
[1771914089513,0.45488172,76.887,76.86,5.62413801]
[1771914090027,0.45488172,76.887,76.861,0.4175482]
[1771914095633,65.01105187,76.91,76.852,0.4175482]
[1771914095634,0.45488172,76.885,76.852,0.4175482]
[1771914095820,0.45488172,76.885,76.813,5.36086188]
[1771914095821,0.45488172,76.879,76.84,5.62413801]
[1771914096216,0.45488172,76.879,76.851,0.4175482]
[1771914097031,0.45488172,76.879,76.84,5.20658981]
[1771914097834,0.45488172,76.877,76.841,13.01388581]
[1771914098427,0.45488172,76.877,76.842,0.4175482]
[1771914100226,0.45488172,76.869,76.833,13.01514989]
[1771914100427,0.45488172,76.869,76.834,0.4175482]
[1771914102035,0.45488172,76.869,76.841,0.4175482]
[1771914104338,0.45488172,76.867,76.841,0.4175482]
[1771914105445,0.45488172,76.865,76.841,0.4175482]
[1771914106739,0.45488172,76.865,76.834,0.4175482]